[Event "Titled Tuesday Blitz June 13 Early 2023"]
[White "Jaivardhan Raj"]
[Black "Estrada Nieto, Julian"]
[WhiteFideId "25744437"]
[BlackFideId "5101018"]
[WhiteElo "1772"]
[BlackElo "2161"]
[Result "1-0"]
[Round "4"]
[TimeControl "180+2"]
[Date "2023.06.13"]
[WhiteClock "0:00:45"]
[BlackClock "0:00:18"]
[Board "176"]

1. e4 {[%clk 0:03:00]}  e5 {[%clk 0:02:59]} 2. d4 {[%clk 0:02:59]}  exd4 {[%clk 0:02:59]} 3. Qxd4 {[%clk 0:03:00]}  Nc6 {[%clk 0:02:59]} 4. Qe3 {[%clk 0:03:01]}  Nf6 {[%clk 0:03:00]} 5. Nc3 {[%clk 0:03:02]}  Be7 {[%clk 0:03:00]} 6. Bd2 {[%clk 0:03:02]}  d5 {[%clk 0:03:00]} 7. exd5 {[%clk 0:02:56]}  Nxd5 {[%clk 0:03:01]} 8. Nxd5 {[%clk 0:02:53]}  Qxd5 {[%clk 0:03:00]} 9. Bd3 {[%clk 0:02:44]}  O-O {[%clk 0:02:46]} 10. Ne2 {[%clk 0:02:37]}  Bf5 {[%clk 0:02:28]} 11. Nf4 {[%clk 0:02:33]}  Qd7 {[%clk 0:02:23]} 12. O-O-O {[%clk 0:02:29]}  Bxd3 {[%clk 0:01:59]} 13. Qxd3 {[%clk 0:02:21]}  Qxd3 {[%clk 0:01:58]} 14. Nxd3 {[%clk 0:02:22]}  Bd6 {[%clk 0:01:50]} 15. Rhe1 {[%clk 0:02:00]}  Rfe8 {[%clk 0:01:50]} 16. Bf4 {[%clk 0:01:58]}  Bxf4+ {[%clk 0:01:36]} 17. Nxf4 {[%clk 0:01:56]}  Kf8 {[%clk 0:01:32]} 18. Nd5 {[%clk 0:01:52]}  Rxe1 {[%clk 0:01:24]} 19. Rxe1 {[%clk 0:01:51]}  Rc8 {[%clk 0:01:25]} 20. h4 {[%clk 0:01:46]}  Nd8 {[%clk 0:01:17]} 21. Nf4 {[%clk 0:01:42]}  c6 {[%clk 0:01:11]} 22. b3 {[%clk 0:01:38]}  Rc7 {[%clk 0:01:11]} 23. Rd1 {[%clk 0:01:36]}  Ke8 {[%clk 0:01:07]} 24. a4 {[%clk 0:01:30]}  Rd7 {[%clk 0:01:01]} 25. Rd2 {[%clk 0:01:15]}  g6 {[%clk 0:00:55]} 26. g4 {[%clk 0:01:10]}  Ke7 {[%clk 0:00:54]} 27. Re2+ {[%clk 0:01:09]}  Ne6 {[%clk 0:00:52]} 28. f3 {[%clk 0:00:58]}  Kf6 {[%clk 0:00:45]} 29. Nxe6 {[%clk 0:00:55]}  fxe6 {[%clk 0:00:44]} 30. c3 {[%clk 0:00:52]}  Rd5 {[%clk 0:00:41]} 31. Re4 {[%clk 0:00:49]}  a5 {[%clk 0:00:32]} 32. Kc2 {[%clk 0:00:48]}  e5 {[%clk 0:00:30]} 33. c4 {[%clk 0:00:47]}  Rd1 {[%clk 0:00:18]} 34. Kxd1 {[%clk 0:00:45]} 1-0


[Site "https://www.chess.com"]

[Event "Titled Tuesday Blitz June 13 Early 2023"]
[White "Fabris, Alberto"]
[Black "Rios Escobar, Adan"]
[WhiteFideId "801348"]
[BlackFideId "3403645"]
[WhiteElo "2181"]
[BlackElo "2458"]
[Result "0-1"]
[Round "4"]
[TimeControl "180+2"]
[Date "2023.06.13"]
[WhiteClock "0:00:00"]
[BlackClock "0:00:05"]
[Board "177"]

1. e4 {[%clk 0:03:00]}  c5 {[%clk 0:02:52]} 2. Nf3 {[%clk 0:03:01]}  d6 {[%clk 0:02:53]} 3. Bb5+ {[%clk 0:03:00]}  Nd7 {[%clk 0:02:51]} 4. d4 {[%clk 0:02:58]}  cxd4 {[%clk 0:02:49]} 5. Qxd4 {[%clk 0:02:58]}  a6 {[%clk 0:02:49]} 6. Ba4 {[%clk 0:02:47]}  e5 {[%clk 0:02:47]} 7. Qe3 {[%clk 0:02:44]}  Nf6 {[%clk 0:02:34]} 8. Nc3 {[%clk 0:02:39]}  Be7 {[%clk 0:02:29]} 9. O-O {[%clk 0:02:33]}  O-O {[%clk 0:02:27]} 10. Bb3 {[%clk 0:02:29]}  Nc5 {[%clk 0:02:24]} 11. Rd1 {[%clk 0:02:25]}  Nxb3 {[%clk 0:02:17]} 12. axb3 {[%clk 0:02:25]}  Qc7 {[%clk 0:02:13]} 13. Qe2 {[%clk 0:02:24]}  h6 {[%clk 0:02:06]} 14. h3 {[%clk 0:02:23]}  Rd8 {[%clk 0:02:04]} 15. Be3 {[%clk 0:02:19]}  Be6 {[%clk 0:01:58]} 16. Rac1 {[%clk 0:02:06]}  b5 {[%clk 0:01:51]} 17. Nd5 {[%clk 0:01:54]}  Nxd5 {[%clk 0:01:45]} 18. exd5 {[%clk 0:01:55]}  Bf5 {[%clk 0:01:45]} 19. c4 {[%clk 0:01:52]}  Qb7 {[%clk 0:01:17]} 20. Qd2 {[%clk 0:01:43]}  Rac8 {[%clk 0:01:14]} 21. Nh2 {[%clk 0:01:31]}  Bg6 {[%clk 0:01:00]} 22. Nf1 {[%clk 0:01:29]}  f5 {[%clk 0:00:59]} 23. f4 {[%clk 0:01:27]}  Bh5 {[%clk 0:00:55]} 24. Re1 {[%clk 0:01:26]}  Kh7 {[%clk 0:00:51]} 25. Ng3 {[%clk 0:01:22]}  Bg6 {[%clk 0:00:49]} 26. Ne2 {[%clk 0:01:17]}  Bf6 {[%clk 0:00:46]} 27. Kh1 {[%clk 0:01:10]}  Rb8 {[%clk 0:00:35]} 28. Rc2 {[%clk 0:01:06]}  Rdc8 {[%clk 0:00:29]} 29. Rec1 {[%clk 0:00:56]}  Bd8 {[%clk 0:00:26]} 30. Qe1 {[%clk 0:00:46]}  Bb6 {[%clk 0:00:22]} 31. Qf2 {[%clk 0:00:45]}  Bxe3 {[%clk 0:00:20]} 32. Qxe3 {[%clk 0:00:45]}  bxc4 {[%clk 0:00:15]} 33. bxc4 {[%clk 0:00:44]}  Re8 {[%clk 0:00:13]} 34. Qa3 {[%clk 0:00:36]}  Qb4 {[%clk 0:00:07]} 35. Qxa6 {[%clk 0:00:31]}  Rb6 {[%clk 0:00:07]} 36. Qa7 {[%clk 0:00:27]}  Rb7 {[%clk 0:00:06]} 37. Qf2 {[%clk 0:00:26]}  Rc8 {[%clk 0:00:04]} 38. Ng3 {[%clk 0:00:17]}  e4 {[%clk 0:00:02]} 39. Nf1 {[%clk 0:00:16]}  Rbc7 {[%clk 0:00:03]} 40. Ne3 {[%clk 0:00:16]}  Rb8 {[%clk 0:00:02]} 41. Qd2 {[%clk 0:00:15]}  Qc5 {[%clk 0:00:02]} 42. Qc3 {[%clk 0:00:15]}  Rcb7 {[%clk 0:00:02]} 43. Rb1 {[%clk 0:00:10]}  Rb3 {[%clk 0:00:02]} 44. Qd2 {[%clk 0:00:10]}  Qxe3 {[%clk 0:00:02]} 45. Qxe3 {[%clk 0:00:10]}  Rxe3 {[%clk 0:00:03]} 46. b4 {[%clk 0:00:10]}  Be8 {[%clk 0:00:03]} 47. Rcb2 {[%clk 0:00:06]}  Rc3 {[%clk 0:00:03]} 48. c5 {[%clk 0:00:04]}  dxc5 {[%clk 0:00:03]} 49. bxc5 {[%clk 0:00:04]}  Rxb2 {[%clk 0:00:04]} 50. Rxb2 {[%clk 0:00:05]}  Rxc5 {[%clk 0:00:05]} 51. Rb8 {[%clk 0:00:04]}  Bf7 {[%clk 0:00:04]} 52. d6 {[%clk 0:00:02]}  Rd5 {[%clk 0:00:04]} 53. Rb6 {[%clk 0:00:02]}  Be6 {[%clk 0:00:04]} 54. Kg1 {[%clk 0:00:02]}  Bd7 {[%clk 0:00:04]} 55. Kf2 {[%clk 0:00:00]}  Kg6 {[%clk 0:00:05]} 0-1


[Site "https://www.chess.com"]

[Event "Titled Tuesday Blitz June 13 Early 2023"]
[White "Blackwhite017"]
[Black "UNSTOPPABLE_LEGEND"]
[WhiteElo "2126"]
[BlackElo "2456"]
[Result "0-1"]
[Round "4"]
[TimeControl "180+2"]
[Date "2023.06.13"]
[WhiteClock "0:01:14"]
[BlackClock "0:02:19"]
[Board "180"]

1. e4 {[%clk 0:03:00]}  c6 {[%clk 0:02:59]} 2. Nf3 {[%clk 0:02:59]}  d5 {[%clk 0:03:00]} 3. exd5 {[%clk 0:03:00]}  cxd5 {[%clk 0:03:01]} 4. Ne5 {[%clk 0:03:01]}  Nc6 {[%clk 0:02:59]} 5. d4 {[%clk 0:03:01]}  e6 {[%clk 0:02:46]} 6. c3 {[%clk 0:03:00]}  Bd6 {[%clk 0:02:46]} 7. f4 {[%clk 0:02:59]}  Nge7 {[%clk 0:02:45]} 8. Bd3 {[%clk 0:02:55]}  Qc7 {[%clk 0:02:42]} 9. Nd2 {[%clk 0:02:36]}  f6 {[%clk 0:02:41]} 10. Qh5+ {[%clk 0:02:27]}  g6 {[%clk 0:02:30]} 11. Bxg6+ {[%clk 0:02:11]}  Nxg6 {[%clk 0:02:25]} 12. Nxg6 {[%clk 0:02:07]}  Qf7 {[%clk 0:02:25]} 13. f5 {[%clk 0:01:46]}  Rg8 {[%clk 0:02:24]} 14. O-O {[%clk 0:01:21]}  hxg6 {[%clk 0:02:19]} 15. fxg6 {[%clk 0:01:21]}  Qxg6 {[%clk 0:02:20]} 16. Qxg6+ {[%clk 0:01:14]}  Rxg6 {[%clk 0:02:19]} 0-1


[Site "https://www.chess.com"]

[Event "Titled Tuesday Blitz June 13 Early 2023"]
[White "Lisjak, Zlatko"]
[Black "Palczert, Matyas"]
[WhiteFideId "14502186"]
[BlackFideId "784958"]
[WhiteElo "1998"]
[BlackElo "2224"]
[Result "0-1"]
[Round "4"]
[TimeControl "180+2"]
[Date "2023.06.13"]
[WhiteClock "0:00:42"]
[BlackClock "0:01:18"]
[Board "181"]

1. d4 {[%clk 0:03:00]}  Nf6 {[%clk 0:02:57]} 2. Nc3 {[%clk 0:03:01]}  d5 {[%clk 0:02:56]} 3. Bf4 {[%clk 0:02:59]}  e6 {[%clk 0:02:56]} 4. e3 {[%clk 0:02:59]}  Bb4 {[%clk 0:02:54]} 5. f3 {[%clk 0:02:56]}  O-O {[%clk 0:02:49]} 6. Ne2 {[%clk 0:02:54]}  c5 {[%clk 0:02:47]} 7. a3 {[%clk 0:02:54]}  Bxc3+ {[%clk 0:02:45]} 8. Nxc3 {[%clk 0:02:53]}  Nc6 {[%clk 0:02:41]} 9. g4 {[%clk 0:02:45]}  cxd4 {[%clk 0:02:38]} 10. exd4 {[%clk 0:02:43]}  Qb6 {[%clk 0:02:38]} 11. Bd6 {[%clk 0:02:24]}  Qxb2 {[%clk 0:02:06]} 12. Na4 {[%clk 0:02:20]}  Qxd4 {[%clk 0:02:05]} 13. Bxf8 {[%clk 0:02:17]}  Qe5+ {[%clk 0:01:28]} 14. Kf2 {[%clk 0:01:58]}  Kxf8 {[%clk 0:01:26]} 15. Bd3 {[%clk 0:01:46]}  Qf4 {[%clk 0:01:22]} 16. Nc3 {[%clk 0:01:34]}  Nxg4+ {[%clk 0:01:21]} 17. Kf1 {[%clk 0:00:48]}  Ne3+ {[%clk 0:01:20]} 18. Kf2 {[%clk 0:00:49]}  Nxd1+ {[%clk 0:01:19]} 19. Raxd1 {[%clk 0:00:42]}  Qd4+ {[%clk 0:01:18]} 0-1


[Site "https://www.chess.com"]

[Event "Titled Tuesday Blitz June 13 Early 2023"]
[White "Levitan, Ronit"]
[Black "Dudzinski, Pawel"]
[WhiteFideId "2815109"]
[BlackFideId "1117890"]
[WhiteElo "1930"]
[BlackElo "2099"]
[Result "0-1"]
[Round "4"]
[TimeControl "180+2"]
[Date "2023.06.13"]
[WhiteClock "0:00:07"]
[BlackClock "0:01:38"]
[Board "182"]

1. e4 {[%clk 0:03:00]}  c6 {[%clk 0:02:53]} 2. d4 {[%clk 0:03:00]}  d5 {[%clk 0:02:54]} 3. exd5 {[%clk 0:02:59]}  cxd5 {[%clk 0:02:55]} 4. c4 {[%clk 0:02:59]}  Nf6 {[%clk 0:02:54]} 5. Nc3 {[%clk 0:02:59]}  e6 {[%clk 0:02:53]} 6. Nf3 {[%clk 0:02:59]}  Be7 {[%clk 0:02:53]} 7. cxd5 {[%clk 0:02:59]}  Nxd5 {[%clk 0:02:52]} 8. Bd3 {[%clk 0:02:59]}  Nc6 {[%clk 0:02:51]} 9. O-O {[%clk 0:02:59]}  O-O {[%clk 0:02:51]} 10. a3 {[%clk 0:02:59]}  b6 {[%clk 0:02:49]} 11. Re1 {[%clk 0:02:59]}  Bb7 {[%clk 0:02:48]} 12. Bc2 {[%clk 0:02:57]}  Rc8 {[%clk 0:02:45]} 13. Qd3 {[%clk 0:02:57]}  g6 {[%clk 0:02:45]} 14. Bh6 {[%clk 0:02:54]}  Re8 {[%clk 0:02:45]} 15. Nxd5 {[%clk 0:02:53]}  Qxd5 {[%clk 0:02:44]} 16. Bb3 {[%clk 0:02:44]}  Qh5 {[%clk 0:02:31]} 17. Qe3 {[%clk 0:02:30]}  Na5 {[%clk 0:02:29]} 18. Bxe6 {[%clk 0:01:41]}  Bf8 {[%clk 0:02:07]} 19. Bxf7+ {[%clk 0:00:33]}  Kxf7 {[%clk 0:02:08]} 20. Qf4+ {[%clk 0:00:31]}  Qf5 {[%clk 0:02:07]} 21. Ng5+ {[%clk 0:00:20]}  Kg8 {[%clk 0:02:06]} 22. Rxe8 {[%clk 0:00:14]}  Rxe8 {[%clk 0:02:02]} 23. Qc7 {[%clk 0:00:14]}  Re7 {[%clk 0:01:47]} 24. Qd8 {[%clk 0:00:13]}  Nc6 {[%clk 0:01:37]} 25. Qxf8+ {[%clk 0:00:10]}  Qxf8 {[%clk 0:01:38]} 26. Bxf8 {[%clk 0:00:07]}  Kxf8 {[%clk 0:01:38]} 0-1


[Site "https://www.chess.com"]

[Event "Titled Tuesday Blitz June 13 Early 2023"]
[White "Mrudul Dehankar"]
[Black "Kriti Mayur Patel"]
[WhiteFideId "25096990"]
[BlackFideId "35061780"]
[WhiteElo "2139"]
[BlackElo "1306"]
[Result "1-0"]
[Round "4"]
[TimeControl "180+2"]
[Date "2023.06.13"]
[WhiteClock "0:00:09"]
[BlackClock "0:00:09"]
[Board "185"]

1. e4 {[%clk 0:02:40]}  e5 {[%clk 0:02:59]} 2. Nf3 {[%clk 0:02:35]}  Nc6 {[%clk 0:03:00]} 3. Bb5 {[%clk 0:02:34]}  a6 {[%clk 0:03:00]} 4. Ba4 {[%clk 0:02:28]}  Nf6 {[%clk 0:03:00]} 5. O-O {[%clk 0:02:24]}  b5 {[%clk 0:02:59]} 6. Bb3 {[%clk 0:02:22]}  Bc5 {[%clk 0:02:59]} 7. c3 {[%clk 0:02:17]}  d6 {[%clk 0:02:58]} 8. a4 {[%clk 0:02:13]}  Rb8 {[%clk 0:02:58]} 9. d4 {[%clk 0:02:12]}  Bb6 {[%clk 0:02:57]} 10. Na3 {[%clk 0:02:03]}  Bg4 {[%clk 0:02:43]} 11. axb5 {[%clk 0:01:58]}  axb5 {[%clk 0:02:43]} 12. Nxb5 {[%clk 0:01:53]}  exd4 {[%clk 0:01:55]} 13. Nbxd4 {[%clk 0:01:49]}  Bxd4 {[%clk 0:01:48]} 14. cxd4 {[%clk 0:01:37]}  O-O {[%clk 0:01:20]} 15. Ba4 {[%clk 0:01:30]}  Ne7 {[%clk 0:01:05]} 16. h3 {[%clk 0:01:23]}  Bh5 {[%clk 0:00:59]} 17. Re1 {[%clk 0:01:19]}  Rb4 {[%clk 0:00:50]} 18. Bg5 {[%clk 0:00:47]}  Bxf3 {[%clk 0:00:41]} 19. Qxf3 {[%clk 0:00:45]}  Rxd4 {[%clk 0:00:22]} 20. Bxf6 {[%clk 0:00:40]}  gxf6 {[%clk 0:00:22]} 21. Qxf6 {[%clk 0:00:39]}  Rd2 {[%clk 0:00:22]} 22. Qg5+ {[%clk 0:00:36]}  Ng6 {[%clk 0:00:20]} 23. Qxd2 {[%clk 0:00:36]}  Qh4 {[%clk 0:00:20]} 24. Bb3 {[%clk 0:00:24]}  Ne5 {[%clk 0:00:20]} 25. Re3 {[%clk 0:00:20]}  Kh8 {[%clk 0:00:20]} 26. Rg3 {[%clk 0:00:20]}  Qf6 {[%clk 0:00:19]} 27. Rf1 {[%clk 0:00:17]}  Re8 {[%clk 0:00:18]} 28. Qc3 {[%clk 0:00:13]}  Rf8 {[%clk 0:00:18]} 29. f4 {[%clk 0:00:13]}  Nd7 {[%clk 0:00:15]} 30. e5 {[%clk 0:00:10]}  dxe5 {[%clk 0:00:14]} 31. fxe5 {[%clk 0:00:10]}  Qb6+ {[%clk 0:00:14]} 32. Kh1 {[%clk 0:00:10]}  f6 {[%clk 0:00:13]} 33. e6 {[%clk 0:00:10]}  Ne5 {[%clk 0:00:13]} 34. Re3 {[%clk 0:00:10]}  Ng6 {[%clk 0:00:12]} 35. e7 {[%clk 0:00:09]}  Re8 {[%clk 0:00:11]} 36. Rxf6 {[%clk 0:00:09]}  Qb7 {[%clk 0:00:09]} 37. Rf8# {[%clk 0:00:09]} 1-0


[Site "https://www.chess.com"]

[Event "Titled Tuesday Blitz June 13 Early 2023"]
[White "Szyszylo, Rafal"]
[Black "Semenova, Alina"]
[WhiteFideId "1109626"]
[BlackFideId "24113875"]
[WhiteElo "1951"]
[BlackElo "1833"]
[Result "1-0"]
[Round "4"]
[TimeControl "180+2"]
[Date "2023.06.13"]
[WhiteClock "0:00:50"]
[BlackClock "0:00:00"]
[Board "186"]

1. e4 {[%clk 0:03:00]}  e6 {[%clk 0:02:59]} 2. d4 {[%clk 0:02:58]}  d5 {[%clk 0:02:59]} 3. e5 {[%clk 0:02:57]}  c5 {[%clk 0:02:59]} 4. c3 {[%clk 0:02:58]}  Nc6 {[%clk 0:02:59]} 5. Nf3 {[%clk 0:02:58]}  Qb6 {[%clk 0:02:59]} 6. Bd3 {[%clk 0:02:58]}  Nge7 {[%clk 0:02:58]} 7. dxc5 {[%clk 0:02:54]}  Qxc5 {[%clk 0:02:58]} 8. O-O {[%clk 0:02:53]}  g6 {[%clk 0:02:48]} 9. h4 {[%clk 0:02:38]}  Bg7 {[%clk 0:02:45]} 10. Re1 {[%clk 0:02:36]}  h5 {[%clk 0:02:45]} 11. Nbd2 {[%clk 0:02:21]}  Bd7 {[%clk 0:02:35]} 12. Nb3 {[%clk 0:02:19]}  Qb6 {[%clk 0:02:34]} 13. Bg5 {[%clk 0:02:18]}  a6 {[%clk 0:02:19]} 14. Be3 {[%clk 0:02:15]}  Qc7 {[%clk 0:02:17]} 15. Bd4 {[%clk 0:02:10]}  Nf5 {[%clk 0:01:59]} 16. Bxf5 {[%clk 0:02:09]}  Nxd4 {[%clk 0:01:59]} 17. cxd4 {[%clk 0:02:02]}  exf5 {[%clk 0:01:55]} 18. Rc1 {[%clk 0:02:03]}  Bc6 {[%clk 0:01:44]} 19. e6 {[%clk 0:01:55]}  O-O {[%clk 0:01:41]} 20. exf7+ {[%clk 0:01:55]}  Rxf7 {[%clk 0:01:40]} 21. Ng5 {[%clk 0:01:54]}  Re7 {[%clk 0:01:40]} 22. Qf3 {[%clk 0:01:46]}  Rae8 {[%clk 0:01:38]} 23. Rxe7 {[%clk 0:01:38]}  Qxe7 {[%clk 0:01:38]} 24. Nc5 {[%clk 0:01:34]}  Qe2 {[%clk 0:01:11]} 25. Nce6 {[%clk 0:01:25]}  Qxf3 {[%clk 0:01:07]} 26. gxf3 {[%clk 0:01:26]}  Bf6 {[%clk 0:01:01]} 27. Nf4 {[%clk 0:01:20]}  Kg7 {[%clk 0:00:54]} 28. Rd1 {[%clk 0:01:19]}  Rc8 {[%clk 0:00:39]} 29. Rd2 {[%clk 0:01:18]}  Re8 {[%clk 0:00:28]} 30. Kf1 {[%clk 0:01:17]}  Bb5+ {[%clk 0:00:28]} 31. Kg2 {[%clk 0:01:17]}  Bc6 {[%clk 0:00:26]} 32. Kg3 {[%clk 0:01:15]}  Re1 {[%clk 0:00:23]} 33. Kg2 {[%clk 0:01:11]}  Ra1 {[%clk 0:00:14]} 34. b3 {[%clk 0:01:06]}  Rc1 {[%clk 0:00:12]} 35. Nd3 {[%clk 0:00:57]}  Rc3 {[%clk 0:00:09]} 36. Ne5 {[%clk 0:00:55]}  a5 {[%clk 0:00:05]} 37. f4 {[%clk 0:00:52]}  a4 {[%clk 0:00:04]} 38. bxa4 {[%clk 0:00:51]}  Bxa4 {[%clk 0:00:00]} 39. Rb2 {[%clk 0:00:50]} 1-0


[Site "https://www.chess.com"]

[Event "Titled Tuesday Blitz June 13 Early 2023"]
[White "FunnyDuck66"]
[Black "Skiadopoulos, Nikolaos"]
[BlackFideId "4200772"]
[WhiteElo "2433"]
[BlackElo "2022"]
[Result "1-0"]
[Round "4"]
[TimeControl "180+2"]
[Date "2023.06.13"]
[WhiteClock "0:01:44"]
[BlackClock "0:01:21"]
[Board "187"]

1. d4 {[%clk 0:03:00]}  Nf6 {[%clk 0:02:59]} 2. Nf3 {[%clk 0:03:00]}  g6 {[%clk 0:02:58]} 3. Bg5 {[%clk 0:02:59]}  Bg7 {[%clk 0:02:58]} 4. Nbd2 {[%clk 0:02:58]}  d5 {[%clk 0:02:57]} 5. e3 {[%clk 0:02:56]}  Nbd7 {[%clk 0:02:53]} 6. Be2 {[%clk 0:02:55]}  O-O {[%clk 0:02:51]} 7. O-O {[%clk 0:02:49]}  b6 {[%clk 0:02:51]} 8. c3 {[%clk 0:02:45]}  c5 {[%clk 0:02:49]} 9. b4 {[%clk 0:02:45]}  a5 {[%clk 0:02:39]} 10. bxc5 {[%clk 0:02:43]}  bxc5 {[%clk 0:02:38]} 11. a4 {[%clk 0:02:42]}  c4 {[%clk 0:02:29]} 12. Qc2 {[%clk 0:02:38]}  h6 {[%clk 0:02:18]} 13. Bf4 {[%clk 0:02:27]}  Nh5 {[%clk 0:02:13]} 14. Ne5 {[%clk 0:02:16]}  Nxf4 {[%clk 0:02:10]} 15. exf4 {[%clk 0:02:16]}  Nxe5 {[%clk 0:02:05]} 16. fxe5 {[%clk 0:02:10]}  Bf5 {[%clk 0:02:04]} 17. Qc1 {[%clk 0:02:09]}  Kh7 {[%clk 0:01:59]} 18. g4 {[%clk 0:02:07]}  Be6 {[%clk 0:01:55]} 19. Rb1 {[%clk 0:02:04]}  Qd7 {[%clk 0:01:53]} 20. h3 {[%clk 0:01:55]}  Qxa4 {[%clk 0:01:51]} 21. f4 {[%clk 0:01:55]}  Qd7 {[%clk 0:01:48]} 22. Bd1 {[%clk 0:01:54]}  a4 {[%clk 0:01:42]} 23. f5 {[%clk 0:01:55]}  gxf5 {[%clk 0:01:36]} 24. gxf5 {[%clk 0:01:55]}  a3 {[%clk 0:01:32]} 25. fxe6 {[%clk 0:01:54]}  Qxe6 {[%clk 0:01:30]} 26. Bc2+ {[%clk 0:01:49]}  Kh8 {[%clk 0:01:29]} 27. Bf5 {[%clk 0:01:49]}  Qb6 {[%clk 0:01:21]} 28. Rxb6 {[%clk 0:01:44]} 1-0


[Site "https://www.chess.com"]

[Event "Titled Tuesday Blitz June 13 Early 2023"]
[White "Sanchez, Robert"]
[Black "Abduzhaparov"]
[WhiteFideId "2034360"]
[WhiteElo "1904"]
[BlackElo "2431"]
[Result "1/2-1/2"]
[Round "4"]
[TimeControl "180+2"]
[Date "2023.06.13"]
[WhiteClock "0:00:05"]
[BlackClock "0:00:04"]
[Board "188"]

1. e4 {[%clk 0:03:00]}  d6 {[%clk 0:03:00]} 2. d4 {[%clk 0:03:00]}  Nf6 {[%clk 0:03:01]} 3. Nc3 {[%clk 0:02:58]}  e5 {[%clk 0:03:02]} 4. Nf3 {[%clk 0:02:58]}  Nbd7 {[%clk 0:03:02]} 5. Bc4 {[%clk 0:02:58]}  Be7 {[%clk 0:03:02]} 6. O-O {[%clk 0:02:58]}  O-O {[%clk 0:03:02]} 7. a4 {[%clk 0:02:58]}  c6 {[%clk 0:03:01]} 8. h3 {[%clk 0:02:58]}  b6 {[%clk 0:03:01]} 9. Re1 {[%clk 0:02:59]}  a6 {[%clk 0:03:01]} 10. Bb3 {[%clk 0:02:56]}  Bb7 {[%clk 0:03:00]} 11. Be3 {[%clk 0:02:53]}  b5 {[%clk 0:03:00]} 12. d5 {[%clk 0:02:46]}  cxd5 {[%clk 0:02:42]} 13. Bxd5 {[%clk 0:02:36]}  Nxd5 {[%clk 0:02:37]} 14. Nxd5 {[%clk 0:02:36]}  Nf6 {[%clk 0:02:31]} 15. axb5 {[%clk 0:02:23]}  Nxd5 {[%clk 0:02:28]} 16. exd5 {[%clk 0:02:17]}  axb5 {[%clk 0:02:28]} 17. Qd3 {[%clk 0:02:12]}  Qd7 {[%clk 0:02:13]} 18. b3 {[%clk 0:01:52]}  f5 {[%clk 0:02:12]} 19. Nh2 {[%clk 0:01:27]}  Bf6 {[%clk 0:01:58]} 20. Rxa8 {[%clk 0:01:22]}  Rxa8 {[%clk 0:01:56]} 21. c4 {[%clk 0:01:23]}  bxc4 {[%clk 0:01:53]} 22. bxc4 {[%clk 0:01:22]}  e4 {[%clk 0:01:45]} 23. Qc2 {[%clk 0:01:17]}  Qa4 {[%clk 0:01:40]} 24. Qb1 {[%clk 0:01:06]}  Ba6 {[%clk 0:01:33]} 25. Qb6 {[%clk 0:01:05]}  Be5 {[%clk 0:01:19]} 26. f4 {[%clk 0:01:05]}  exf3 {[%clk 0:01:16]} 27. Nxf3 {[%clk 0:01:05]}  Qxc4 {[%clk 0:01:10]} 28. Nxe5 {[%clk 0:01:02]}  dxe5 {[%clk 0:01:08]} 29. Qe6+ {[%clk 0:00:59]}  Kh8 {[%clk 0:01:06]} 30. Qxe5 {[%clk 0:00:59]}  Bb7 {[%clk 0:00:49]} 31. Bh6 {[%clk 0:00:44]}  Qc5+ {[%clk 0:00:45]} 32. Kh2 {[%clk 0:00:42]}  Qf8 {[%clk 0:00:42]} 33. d6 {[%clk 0:00:39]}  Bc8 {[%clk 0:00:37]} 34. Rc1 {[%clk 0:00:31]}  Bd7 {[%clk 0:00:32]} 35. Rc7 {[%clk 0:00:30]}  Rd8 {[%clk 0:00:31]} 36. Bg5 {[%clk 0:00:30]}  Re8 {[%clk 0:00:30]} 37. Qc3 {[%clk 0:00:14]}  Qxd6+ {[%clk 0:00:23]} 38. Kg1 {[%clk 0:00:13]}  h6 {[%clk 0:00:17]} 39. Bxh6 {[%clk 0:00:13]}  Qb6+ {[%clk 0:00:15]} 40. Kh2 {[%clk 0:00:11]}  Qxh6 {[%clk 0:00:14]} 41. Rxd7 {[%clk 0:00:11]}  Qf4+ {[%clk 0:00:14]} 42. Kg1 {[%clk 0:00:09]}  Qe3+ {[%clk 0:00:14]} 43. Qxe3 {[%clk 0:00:09]}  Rxe3 {[%clk 0:00:14]} 44. Rf7 {[%clk 0:00:09]}  Re5 {[%clk 0:00:14]} 45. Kf2 {[%clk 0:00:09]}  Kg8 {[%clk 0:00:05]} 46. Ra7 {[%clk 0:00:09]}  Kh7 {[%clk 0:00:05]} 47. Kf3 {[%clk 0:00:09]}  Kg6 {[%clk 0:00:06]} 48. Ra6+ {[%clk 0:00:08]}  Kg5 {[%clk 0:00:06]} 49. g3 {[%clk 0:00:08]}  Rb5 {[%clk 0:00:06]} 50. h4+ {[%clk 0:00:07]}  Kh5 {[%clk 0:00:06]} 51. Ra7 {[%clk 0:00:06]}  Rb3+ {[%clk 0:00:05]} 52. Kf4 {[%clk 0:00:07]}  Rb4+ {[%clk 0:00:04]} 53. Kxf5 {[%clk 0:00:06]}  g6+ {[%clk 0:00:04]} 54. Kf6 {[%clk 0:00:04]}  Rb6+ {[%clk 0:00:05]} 55. Kg7 {[%clk 0:00:04]}  Kg4 {[%clk 0:00:05]} 56. Ra5 {[%clk 0:00:03]}  Kxg3 {[%clk 0:00:04]} 57. Rg5+ {[%clk 0:00:03]}  Kxh4 {[%clk 0:00:05]} 58. Rxg6 {[%clk 0:00:04]}  Rxg6+ {[%clk 0:00:04]} 59. Kxg6 {[%clk 0:00:05]} 1/2-1/2


[Site "https://www.chess.com"]